fUSD/lending_fUSD_20240629
["ID","MTS","AMOUNT","RATE_DAILY","PERIOD"]
[330618359,1719627052050,-500.0,0.00021917,3]
[330618360,1719627052060,-151.0,0.00021917,2]
[330618361,1719627052069,-1140.07,0.00021917,3]
[330618362,1719627052080,-501.75128788,0.00021917,3]
[330618363,1719627052090,-500.0,0.00021917,3]
[330618364,1719627052099,-1329.06,0.00021917,3]
[330618365,1719627052109,-500.0,0.00021917,3]
[330618366,1719627052119,-500.0,0.00021917,3]
[330618367,1719627052128,-773.85,0.00021917,3]
[330618368,1719627052137,-2870.28,0.00021917,3]
[330618369,1719627052147,-1120.55,0.00021917,3]
[330618370,1719627052156,-500.0,0.00021917,3]
[330618371,1719627052167,-520.26081997,0.00021917,3]
[330618372,1719627052176,-501.5781862,0.00021917,3]
[330618373,1719627052185,-765.04,0.00021917,3]
[330618374,1719627052194,-1488.43,0.00021917,3]
[330618375,1719627052203,-500.0,0.00021917,3]
[330618376,1719627052215,-290.30419269,0.00021917,3]
[330618377,1719627052227,-506.5,0.00021917,3]
[330618378,1719627052237,-1331.27,0.00021917,3]
[330618379,1719627052246,-500.0,0.00021917,3]
[330618380,1719627052256,-500.0,0.00021917,3]
[330618381,1719627052266,-876.66,0.00021917,3]
[330618382,1719627052274,-500.0,0.00021917,3]
[330618383,1719627052283,-4519.88,0.00021917,3]
[330618384,1719627052296,-500.0,0.00021917,3]
[330618385,1719627052305,-500.0,0.00021917,3]
[330618386,1719627052314,-500.0,0.00021917,3]
[330618387,1719627052323,-500.0,0.00021917,3]
[330618388,1719627052332,-500.0,0.00021917,3]
[330618389,1719627052341,-500.0,0.00021917,3]
[330618390,1719627052350,-600.08,0.00021917,3]
[330618391,1719627052360,-1196.91,0.00021917,3]
[330618392,1719627052368,-500.0,0.00021917,3]
[330618393,1719627052377,-643.43,0.00021917,3]
[330618394,1719627052386,-629.51,0.00021917,3]
[330618395,1719627052396,-626.91,0.00021917,3]
[330618396,1719627052406,-1038.39,0.00021917,3]
[330618397,1719627052417,-151.0,0.00021917,2]
[330618398,1719627052425,-500.0,0.00021917,3]
[330618399,1719627052434,-1163.28,0.00021917,3]
[330618400,1719627052443,-563.07,0.00021917,3]
[330618401,1719627052452,-943.83,0.00021917,3]
[330618402,1719627052461,-617.87,0.00021917,3]
[330618403,1719627052470,-500.0,0.00021917,3]
[330618404,1719627052479,-1084.88,0.00021917,3]
[330618405,1719627052488,-500.0,0.00021917,3]
[330618406,1719627052498,-500.0,0.00021917,3]
[330618407,1719627052507,-500.0,0.00021917,3]
[330618408,1719627052515,-1083.11,0.00021917,3]
[330618409,1719627052526,-573.32,0.00021917,3]
[330618410,1719627052536,-500.0,0.00021917,3]
[330618411,1719627052545,-500.0,0.00021917,3]
[330618412,1719627052554,-500.0,0.00021917,3]
[330618413,1719627052564,-810.27,0.00021917,3]
[330618414,1719627052573,-1551.37,0.00021917,3]
[330618415,1719627052582,-500.0,0.00021917,3]
[330618416,1719627052592,-500.0,0.00021917,3]
[330618417,1719627052602,-500.0,0.00021917,3]
[330618418,1719627052611,-560.05,0.00021917,3]
[330618419,1719627052621,-700.74,0.00021917,3]
[330618420,1719627052630,-717.72,0.00021917,3]
[330618421,1719627052639,-1504.82,0.00021917,3]
[330618422,1719627052648,-500.0,0.00021917,3]
[330618423,1719627052657,-522.99,0.00021917,3]
[330618424,1719627052667,-1198.64,0.00021917,3]
[330618425,1719627052676,-595.2,0.00021917,3]
[330618426,1719627052685,-500.0,0.00021917,3]
[330618427,1719627052694,-500.0,0.00021917,3]
[330618428,1719627052703,-797.76,0.00021917,3]
[330618429,1719627052713,-500.0,0.00021917,3]
[330618430,1719627052722,-500.0,0.00021917,3]
[330618431,1719627052845,-500.0,0.00021917,3]
[330618432,1719627052865,-1421.03,0.00021917,3]
[330618433,1719627052875,-1297.7,0.00021917,3]
[330618434,1719627052884,-1929.74,0.00021917,3]
[330618435,1719627052894,-1731.37,0.00021917,3]
[330618436,1719627052903,-568.68,0.00021917,3]
[330618437,1719627052913,-500.0,0.00021917,3]
[330618438,1719627052923,-806.58,0.00021917,3]
[330618439,1719627052933,-1143.64,0.00021917,3]
[330618440,1719627052943,-500.0,0.00021917,3]
[330618441,1719627052952,-500.0,0.00021917,3]
[330618442,1719627052962,-638.72,0.00021917,3]
[330618443,1719627052971,-500.0,0.00021917,3]
[330618444,1719627052981,-548.55,0.00021917,3]
[330618445,1719627052990,-1125.51,0.00021917,3]
[330618446,1719627053001,-500.0,0.00021917,3]
[330618447,1719627053010,-2208.92,0.00021917,3]
[330618448,1719627053019,-500.0,0.00021917,3]
[330618449,1719627053029,-1240.57,0.00021917,3]
[330618450,1719627053038,-501.59129668,0.00021917,3]
[330618451,1719627053048,-907.6,0.00021917,3]
[330618452,1719627053057,-500.0,0.00021917,3]
[330618453,1719627053067,-500.0,0.00021917,3]
[330618454,1719627053076,-7604.13,0.00021917,3]
[330618455,1719627053086,-1340.45,0.00021917,3]
[330618456,1719627053095,-1150.1,0.00021917,3]
[330618457,1719627053105,-500.0,0.00021917,3]
[330618458,1719627053114,-744.79,0.00021917,3]
[330618459,1719627053124,-500.0,0.00021917,3]
[330618460,1719627053134,-500.0,0.00021917,3]
[330618461,1719627053143,-500.0,0.00021917,3]
[330618462,1719627053153,-500.0,0.00021917,3]
[330618463,1719627053162,-500.0,0.00021917,2]
[330618464,1719627053173,-500.90808139,0.00021917,3]
[330618465,1719627053183,-977.34,0.00021917,3]
[330618466,1719627053192,-500.0,0.00021917,3]
[330618467,1719627053202,-553.76,0.00021917,3]
[330618468,1719627053217,-151.0,0.00021917,2]
[330618469,1719627053227,-151.0,0.00021917,2]
[330618470,1719627053237,-500.0,0.00021917,3]
[330618471,1719627053247,-500.0,0.00021917,3]
[330618472,1719627053258,-2401.38,0.00021917,3]
[330618473,1719627053267,-500.0,0.00021917,3]
[330618474,1719627053276,-1837.14,0.00021917,3]
[330618475,1719627053286,-581.67,0.00021917,3]
[330618476,1719627053299,-659.47,0.00021917,3]
[330618477,1719627053309,-500.0,0.00021917,3]
[330618478,1719627053319,-163.053166,0.00021917,2]
[330618479,1719627053328,-2232.87,0.00021917,3]
[330618480,1719627053338,-500.0,0.00021917,3]
[330618481,1719627053347,-507.41,0.00021917,3]
[330618482,1719627053358,-500.0,0.00021917,3]
[330618483,1719627053367,-500.0,0.00021917,3]
[330618484,1719627053377,-613.81,0.00021917,3]
[330618485,1719627053388,-1357.38,0.00021917,3]
[330618486,1719627053397,-500.0,0.00021917,3]
[330618487,1719627053407,-922.76,0.00021917,3]
[330618488,1719627053416,-608.31,0.00021917,3]
[330618489,1719627053426,-500.0,0.00021917,3]
[330618490,1719627053435,-500.0,0.00021917,3]
[330618491,1719627053445,-2571.82,0.00021917,3]
[330618492,1719627053455,-1063.21,0.00021917,3]
[330618493,1719627053464,-500.0,0.00021917,3]
[330618494,1719627053473,-1242.02,0.00021917,3]
[330618495,1719627053483,-588.71,0.00021917,3]
[330618496,1719627053492,-500.0,0.00021917,3]
[330618497,1719627053502,-500.0,0.00021917,3]
[330618498,1719627053512,-604.47,0.00021917,3]
[330618499,1719627053521,-2013.17,0.00021917,3]
[330618500,1719627053530,-500.0,0.00021917,3]
[330618501,1719627053540,-155.68200786,0.00021917,3]
[330618502,1719627053549,-872.24,0.00021917,3]
[330618503,1719627053558,-535.98,0.00021917,3]
[330618504,1719627053568,-500.0,0.00021917,3]
[330618505,1719627053578,-500.0,0.00021917,3]
[330618506,1719627053587,-827.9,0.00021917,3]
[330618507,1719627053597,-500.0,0.00021917,3]
[330618508,1719627053606,-721.96,0.00021917,3]
[330618509,1719627053617,-700.47,0.00021917,3]
[330618510,1719627053627,-151.0,0.00021917,2]
[330618511,1719627053636,-500.0,0.00021917,3]
[330618512,1719627053646,-151.0,0.00021917,2]
[330618513,1719627053656,-1659.69,0.00021917,3]
[330618514,1719627053666,-861.27,0.00021917,3]
[330618515,1719627053675,-500.0,0.00021917,3]
[330618516,1719627053685,-500.0,0.00021917,3]
[330618517,1719627053694,-1935.47,0.00021917,3]
[330618518,1719627053704,-500.0,0.00021917,3]
[330618519,1719627053715,-151.0,0.00021917,2]
[330618520,1719627053727,-920.28,0.00021917,3]
[330618521,1719627053736,-151.0,0.00021917,2]
[330618522,1719627053747,-500.0,0.00021917,3]
[330618523,1719627053757,-2500.0,0.00021917,3]
[330618524,1719627053767,-500.0,0.00021917,3]
[330618525,1719627053776,-872.11,0.00021917,3]
[330618526,1719627053786,-500.0,0.00021917,3]
[330618527,1719627053796,-2018.0,0.00021917,3]
[330618528,1719627053805,-500.0,0.00021917,3]
[330618529,1719627053815,-906.89,0.00021917,3]
[330618530,1719627053825,-3623.61,0.00021917,3]
[330618531,1719627053834,-682.21,0.00021917,3]
[330618532,1719627053844,-646.25,0.00021917,3]
[330618533,1719627053854,-590.15926849,0.00021917,3]
[330618534,1719627053863,-500.0,0.00021917,3]
[330618535,1719627053873,-151.0,0.00021917,2]
[330618536,1719627053883,-151.0,0.00021917,2]
[330618537,1719627053892,-501.48413682,0.00021917,3]
[330618538,1719627053902,-500.0,0.00021917,3]
[330618539,1719627053911,-528.86,0.00021917,3]
[330618540,1719627053923,-881.21,0.00021917,3]
[330618541,1719627053932,-2210.73,0.00021917,3]
[330618542,1719627053942,-500.0,0.00021917,3]
[330618543,1719627053951,-500.0,0.00021917,3]
[330618544,1719627053960,-877.84,0.00021917,3]
[330618545,1719627053970,-1093.04,0.00021917,3]
[330618546,1719627053979,-500.0,0.00021917,3]
[330618547,1719627053989,-994.12,0.00021917,3]
[330618548,1719627053998,-1146.84,0.00021917,3]
[330618549,1719627054007,-326.1594448,0.00021917,3]
[330618550,1719627054016,-500.0,0.00021917,3]
[330618551,1719627054026,-542.94,0.00021917,3]
[330618552,1719627054036,-500.0,0.00021917,3]
[330618553,1719627054046,-959.09,0.00021917,3]
[330618554,1719627054056,-500.0,0.00021917,3]
[330618555,1719627054065,-622.92,0.00021917,3]
[330618556,1719627054075,-1246.93,0.00021917,3]
[330618557,1719627054085,-500.0,0.00021917,3]
[330618558,1719627054094,-836.56,0.00021917,3]
[330618559,1719627054105,-1069.54,0.00021917,3]
[330618560,1719627054115,-500.49722558,0.00021917,3]
[330618561,1719627054126,-2366.03,0.00021917,3]
[330618562,1719627054136,-500.0,0.00021917,3]
[330618563,1719627054146,-500.0,0.00021917,3]
[330618564,1719627054156,-500.0,0.00021917,3]
[330618565,1719627054166,-500.0,0.00021917,3]
[330618566,1719627054175,-641.89,0.00021917,3]
[330618567,1719627054184,-1937.24,0.00021917,3]
[330618568,1719627054194,-500.0,0.00021917,3]
[330618569,1719627054203,-818.06,0.00021917,3]
[330618570,1719627054214,-500.0,0.00021917,3]
[330618571,1719627054228,-1002.7,0.00021917,3]
[330618572,1719627054238,-1407.05,0.00021917,3]
[330618573,1719627054248,-671.85,0.00021917,3]
[330618574,1719627054258,-500.0,0.00021917,3]
[330618575,1719627054268,-500.0,0.00021917,3]
[330618576,1719627054278,-500.0,0.00021917,3]
[330618577,1719627054288,-2395.42,0.00021917,3]
[330618578,1719627054300,-628.67571582,0.00021917,3]
[330618579,1719627054311,-500.0,0.00021917,3]
[330618580,1719627054320,-500.0,0.00021917,3]
[330618581,1719627054330,-1106.57,0.00021917,3]
[330618582,1719627054340,-500.0,0.00021917,3]
[330618583,1719627054351,-1000.0,0.00021917,3]
[330618584,1719627054360,-545.25,0.00021917,3]
[330618585,1719627054370,-1321.65,0.00021917,3]
[330618586,1719627054380,-500.0,0.00021917,3]
[330618587,1719627054390,-500.0,0.00021917,3]
[330618588,1719627054399,-1012.02,0.00021917,3]
[330618589,1719627054409,-500.0,0.00021917,3]
[330618590,1719627054421,-1656.37,0.00021917,3]
[330618591,1719627054431,-601.93,0.00021917,3]
[330618592,1719627054444,-1690.6,0.00021917,3]
[330618593,1719627054454,-500.0,0.00021917,3]
[330618594,1719627054464,-500.0,0.00021917,3]
[330618595,1719627054474,-1541.68,0.00021917,3]
[330618596,1719627054483,-1274.2,0.00021917,3]
[330618597,1719627054492,-500.50748711,0.00021917,3]
[330618598,1719627054502,-500.0,0.00021917,3]
[330618599,1719627054512,-702.69,0.00021917,3]
[330618600,1719627054521,-500.0,0.00021917,3]
[330618601,1719627054531,-1389.57,0.00021917,3]
[330618602,1719627054541,-1337.58,0.00021917,3]
[330618603,1719627054550,-500.0,0.00021917,3]
[330618604,1719627054560,-765.21,0.00021917,3]
[330618605,1719627054570,-577.57932413,0.00021917,3]
[330618606,1719627054580,-500.0,0.00021917,3]
[330618607,1719627054590,-503.44815465,0.00021917,3]
[330618608,1719627054600,-928.48,0.00021917,3]
[330618609,1719627054610,-500.0,0.00021917,3]
[330618610,1719627054619,-500.0,0.00021917,3]
[330618611,1719627054629,-500.0,0.00021917,3]
[330618612,1719627054638,-773.2,0.00021917,3]
[330618613,1719627054648,-186.88440564,0.00021917,3]
[330618614,1719627054657,-2275.25,0.00021917,3]
[330618615,1719627054667,-917.7,0.00021917,3]
[330618616,1719627054676,-500.0,0.00021917,3]
[330618617,1719627054686,-3851.8,0.00021917,3]
[330618618,1719627054696,-500.0,0.00021917,3]
[330618619,1719627054706,-943.92,0.00021917,3]
[330618620,1719627054716,-500.0,0.00021917,3]
[330618621,1719627054725,-500.0,0.00021917,3]
[330618622,1719627054734,-1046.45,0.00021917,3]
[330618623,1719627054744,-577.67,0.00021917,3]
[330618624,1719627054754,-151.0,0.00021917,2]
[330618625,1719627054763,-500.0,0.00021917,3]
[330618626,1719627054773,-151.0,0.00021917,2]
[330618627,1719627054782,-500.40983385,0.00021917,3]
[330618628,1719627054792,-791.05,0.00021917,3]
[330618629,1719627054801,-1883.87,0.00021917,3]
[330618630,1719627054811,-500.0,0.00021917,3]
[330618631,1719627054820,-857.16,0.00021917,3]
[330618632,1719627054830,-500.0,0.00021917,3]
[330618633,1719627054839,-500.0,0.00021917,3]
[330618634,1719627054849,-635.1,0.00021917,3]
[330618635,1719627054859,-3546.99,0.00021917,3]
[330618636,1719627054868,-537.59,0.00021917,3]
[330618637,1719627054879,-500.0,0.00021917,3]
[330618638,1719627054888,-806.78,0.00021917,3]
[330618639,1719627054897,-1757.03,0.00021917,3]
[330618640,1719627054907,-500.0,0.00021917,3]
[330618641,1719627054917,-948.8,0.00021917,3]
[330618642,1719627054927,-500.0,0.00021917,3]
[330618643,1719627054937,-1664.53,0.00021917,3]
[330618644,1719627054946,-946.99,0.00021917,3]
[330618645,1719627054956,-500.0,0.00021917,3]
[330618646,1719627054966,-500.0,0.00021917,3]
[330618647,1719627054975,-500.0,0.00021917,3]
[330618648,1719627055341,-523.39192268,0.00021917,3]
[330618649,1719627055356,-639.65,0.00021917,3]
[330618650,1719627055367,-1233.34,0.00021917,3]
[330618651,1719627055376,-500.0,0.00021917,3]
[330618652,1719627055386,-1429.72,0.00021917,3]
[330618653,1719627055396,-500.0,0.00021917,3]
[330618654,1719627055406,-1082.41,0.00021917,3]
[330618655,1719627055416,-500.0,0.00021917,3]
[330618656,1719627055428,-500.0,0.00021917,3]
[330618657,1719627055439,-805.96,0.00021917,3]
[330618658,1719627055448,-500.0,0.00021917,3]
[330618659,1719627055457,-500.0,0.00021917,3]
[330618660,1719627055467,-232.18740233,0.00021917,3]
[330618661,1719627055477,-500.0,0.00021917,3]
[330618662,1719627055487,-500.0,0.00021917,3]
[330618663,1719627055497,-500.0,0.00021917,3]
[330618664,1719627055507,-500.0,0.00021917,3]
[330618665,1719627055518,-500.0,0.00021917,3]
[330618666,1719627055527,-535.53,0.00021917,3]
[330618667,1719627055538,-611.29,0.00021917,3]
[330618668,1719627055547,-500.0,0.00021917,3]
[330618669,1719627055557,-500.0,0.00021917,3]
[330618670,1719627055567,-1104.1,0.00021917,3]
[330618671,1719627055576,-500.0,0.00021917,3]
[330618672,1719627055586,-2742.77,0.00021917,3]
[330618673,1719627055596,-3678.5,0.00021917,3]
[330618674,1719627055607,-500.0,0.00021917,3]
[330618675,1719627055616,-877.79,0.00021917,3]
[330618676,1719627055626,-500.0,0.00021917,3]
[330618677,1719627055635,-1544.77,0.00021917,3]
[330618678,1719627055645,-500.0,0.00021917,3]
[330618679,1719627055655,-1496.37,0.00021917,3]
[330618680,1719627055665,-1904.35,0.00021917,3]
[330618681,1719627055676,-638.48,0.00021917,3]
[330618682,1719627055686,-500.0,0.00021917,3]
[330618683,1719627055695,-724.56,0.00021917,3]
[330618684,1719627055704,-913.39,0.00021917,3]
[330618685,1719627055715,-728.68,0.00021917,3]
[330618686,1719627055724,-500.0,0.00021917,3]
[330618687,1719627055734,-572.46,0.00021917,3]
[330618688,1719627055744,-903.6,0.00021917,3]
[330618689,1719627055755,-560.72316318,0.00021917,3]
[330618690,1719627055765,-1211.93,0.00021917,3]
[330618691,1719627055775,-504.49,0.00021917,3]
[330618692,1719627055784,-904.96,0.00021917,3]
[330618693,1719627055793,-500.0,0.00021917,3]
[330618694,1719627055803,-974.5,0.00021917,3]
[330618695,1719627055813,-500.0,0.00021917,3]
[330618696,1719627055823,-1025.77,0.00021917,3]
[330618697,1719627055832,-500.0,0.00021917,3]
[330618698,1719627055842,-165.40827853,0.00021917,3]
[330618699,1719627055852,-589.64,0.00021917,3]
[330618700,1719627055861,-500.0,0.00021917,3]
[330618701,1719627055870,-500.0,0.00021917,3]
[330618702,1719627055880,-500.0,0.00021917,3]
[330618703,1719627055890,-1103.12,0.00021917,3]
[330618704,1719627055900,-500.0,0.00021917,3]
[330618705,1719627055910,-1135.39,0.00021917,3]
[330618706,1719627055921,-500.0,0.00021917,3]
[330618707,1719627055931,-500.0,0.00021917,3]
[330618708,1719627055941,-1866.61,0.00021917,3]
[330618709,1719627055951,-210.35487949,0.00021917,3]
[330618710,1719627055961,-635.3,0.00021917,3]
[330618711,1719627055971,-851.76,0.00021917,3]
[330618712,1719627055981,-500.0,0.00021917,3]
[330618713,1719627055990,-967.41,0.00021917,3]
[330618714,1719627056000,-500.0,0.00021917,3]
[330618715,1719627056010,-923.2,0.00021917,3]
[330618716,1719627056020,-2185.88,0.00021917,3]
[330618717,1719627056030,-500.0,0.00021917,3]
[330618718,1719627056039,-501.17,0.00021917,3]
[330618719,1719627056049,-543.3,0.00021917,3]
[330618720,1719627056059,-765.73,0.00021917,3]
[330618721,1719627056069,-637.81,0.00021917,3]
[330618722,1719627056079,-14424.21,0.00021917,3]
[330618723,1719627056088,-1526.53,0.00021917,3]
[330618724,1719627056097,-500.0,0.00021917,3]
[330618725,1719627056107,-2116.05,0.00021917,3]
[330618726,1719627056117,-643.88,0.00021917,3]
[330618727,1719627056126,-1483.9,0.00021917,3]
[330618728,1719627056136,-1290.11,0.00021917,3]
[330618729,1719627056146,-1191.47,0.00021917,3]
[330618730,1719627056155,-688.44,0.00021917,3]
[330618731,1719627056165,-1147.43,0.00021917,3]
[330618732,1719627056175,-767.25,0.00021917,3]
[330618733,1719627056184,-500.0,0.00021917,3]
[330618734,1719627056194,-2114.91,0.00021917,3]
[330618735,1719627056203,-500.0,0.00021917,3]
[330618736,1719627056215,-849.41,0.00021917,3]
[330618737,1719627056230,-500.0,0.00021917,3]
[330618738,1719627056241,-765.23,0.00021917,3]
[330618739,1719627056254,-500.0,0.00021917,3]
[330618740,1719627056266,-500.0,0.00021917,3]
[330618741,1719627056277,-500.0,0.00021917,3]
[330618742,1719627056287,-500.0,0.00021917,3]
[330618743,1719627056299,-638.86,0.00021917,3]
[330618744,1719627056308,-716.0,0.00021917,3]
[330618745,1719627056319,-1086.56,0.00021917,3]
[330618746,1719627056330,-542.56,0.00021917,3]
[330618747,1719627056342,-500.0,0.00021917,3]
[330618748,1719627056351,-163.094638,0.00021917,2]
[330618749,1719627056361,-914.45,0.00021917,3]
[330618750,1719627056372,-500.0,0.00021917,3]
[330618751,1719627056382,-905.79,0.00021917,3]
[330618752,1719627056393,-1020.64,0.00021917,3]
[330618753,1719627056402,-999.06,0.00021917,3]
[330618754,1719627056412,-500.0,0.00021917,3]
[330618755,1719627056422,-747.79,0.00021917,3]
[330618756,1719627056431,-1912.72,0.00021917,3]
[330618757,1719627056441,-2066.85,0.00021917,3]
[330618758,1719627056450,-858.08,0.00021917,3]
[330618759,1719627056459,-500.0,0.00021917,3]
[330618760,1719627056470,-1340.01,0.00021917,3]
[330618761,1719627056479,-2694.04,0.00021917,3]
[330618762,1719627056489,-500.0,0.00021917,3]
[330618763,1719627056498,-500.0,0.00021917,3]
[330618764,1719627056508,-500.0,0.00021917,3]
[330618765,1719627056517,-151.0,0.00021917,2]
[330618766,1719627056527,-753.75,0.00021917,3]
[330618767,1719627056536,-151.0,0.00021917,2]
[330618768,1719627056546,-500.0,0.00021917,3]
[330618769,1719627056555,-548.52,0.00021917,3]
[330618770,1719627056565,-500.0,0.00021917,3]
[330618771,1719627056574,-500.0,0.00021917,3]
[330618772,1719627056584,-1291.63,0.00021917,3]
[330618773,1719627056594,-1035.06,0.00021917,3]
[330618774,1719627056603,-504.77681423,0.00021917,3]
[330618775,1719627056613,-636.66,0.00021917,3]
[330618776,1719627056623,-2281.52,0.00021917,3]
[330618777,1719627056632,-977.19,0.00021917,3]
[330618778,1719627056642,-500.0,0.00021917,3]
[330618779,1719627056652,-2159.08,0.00021917,3]
[330618780,1719627056661,-2249.4,0.00021917,3]
[330618781,1719627056672,-500.0,0.00021917,3]
[330618782,1719627056681,-500.0,0.00021917,3]
[330618783,1719627056690,-500.0,0.00021917,3]
[330618784,1719627056699,-501.75,0.00021917,3]
[330618785,1719627056709,-500.0,0.00021917,3]
[330618786,1719627056718,-500.0,0.00021917,3]
[330618787,1719627056727,-2301.74,0.00021917,3]
[330618788,1719627056737,-3333.24,0.00021917,3]
[330618789,1719627056746,-1561.71,0.00021917,3]
[330618790,1719627056756,-1379.47,0.00021917,3]
[330618791,1719627056766,-500.0,0.00021917,3]
[330618792,1719627056775,-500.0,0.00021917,3]
[330618793,1719627056784,-507.35,0.00021917,3]
[330618794,1719627056793,-752.13,0.00021917,3]
[330618795,1719627056802,-500.0,0.00021917,3]
[330618796,1719627056812,-962.71,0.00021917,3]
[330618797,1719627056821,-768.06,0.00021917,3]
[330618798,1719627056830,-517.27,0.00021917,3]
[330618799,1719627056839,-150.0,0.00021917,2]
[330618800,1719627056849,-300.0,0.00021917,2]
[330618801,1719627056859,-151.0,0.00021917,2]
[330618802,1719627056868,-450.0,0.00021917,2]
[330618803,1719627056878,-284.194634,0.00021917,2]
[330618804,1719627056888,-250.05728235,0.00021917,2]
[330618805,1719627056897,-500.0,0.00021917,3]
[330618806,1719627056906,-1353.39,0.00021917,3]
[330618807,1719627056916,-1065.3,0.00021917,3]
[330618808,1719627056927,-811.83,0.00021917,3]
[330618809,1719627056936,-737.26,0.00021917,3]
[330618810,1719627056946,-710.31,0.00021917,3]
[330618811,1719627056955,-671.34,0.00021917,3]
[330618812,1719627056964,-151.0,0.00021917,2]
[330618813,1719627056974,-151.0,0.00021917,2]
[330618814,1719627056983,-644.39,0.00021917,3]
[330618815,1719627056992,-952.94,0.00021917,3]
[330618816,1719627057002,-500.0,0.00021917,3]
[330618817,1719627057011,-1152.1,0.00021917,3]
[330618818,1719627057020,-500.0,0.00021917,3]
[330618819,1719627057030,-151.0,0.00021917,2]
[330618820,1719627057039,-232.740572,0.00021917,2]
[330618821,1719627057049,-525.08,0.00021917,3]
[330618822,1719627057059,-2068.72,0.00021917,3]
[330618823,1719627057069,-500.0,0.00021917,3]
[330618824,1719627057079,-500.0,0.00021917,3]
[330618825,1719627057088,-961.99,0.00021917,3]
[330618826,1719627057098,-500.0,0.00021917,3]
[330618827,1719627057108,-941.53,0.00021917,3]
[330618828,1719627057117,-500.0,0.00021917,3]
[330618829,1719627057126,-500.0,0.00021917,3]
[330618830,1719627057136,-843.26,0.00021917,3]
[330618831,1719627057145,-509.51,0.00021917,3]
[330618832,1719627057155,-160.90738439,0.00021917,3]
[330618833,1719627057164,-500.0,0.00021917,3]
[330618834,1719627057176,-1330.74,0.00021917,3]
[330618835,1719627057185,-500.0,0.00021917,3]
[330618836,1719627057195,-620.42,0.00021917,3]
[330618837,1719627057204,-596.62,0.00021917,3]
[330618838,1719627057216,-500.0,0.00021917,3]
[330618839,1719627057228,-694.03,0.00021917,3]
[330618840,1719627057238,-500.0,0.00021917,3]
[330618841,1719627057247,-500.0,0.00021917,3]
[330618842,1719627057258,-2395.15,0.00021917,3]
[330618843,1719627057267,-1036.21,0.00021917,3]
[330618844,1719627057277,-500.0,0.00021917,3]
[330618845,1719627057287,-1024.97,0.00021917,3]
[330618846,1719627057299,-1494.47,0.00021917,3]
[330618847,1719627057309,-750.95,0.00021917,3]
[330618848,1719627057319,-847.08,0.00021917,3]
[330618849,1719627057328,-500.0,0.00021917,3]
[330618850,1719627057337,-1061.25,0.00021917,3]
[330618851,1719627057347,-232.04,0.00021917,3]
[330618852,1719627057356,-472.94097745,0.00021917,3]
[330618853,1719627057366,-831.55,0.00021917,3]
[330618854,1719627057376,-885.74,0.00021917,3]
[330618855,1719627057386,-500.0,0.00021917,3]
[330618856,1719627057395,-500.0,0.00021917,3]
[330618857,1719627057405,-1219.6,0.00021917,3]
[330618858,1719627057414,-4634.18,0.00021917,3]